Cogmind - Beta 17 @@@ ROGUE MODE // 2026.07.07 @ 22:06:36 Player: Polariusz Result: Destroyed by Q0-A00(R) with Subdweller Shrapnel Launcher Performance ------------- Evolutions (0) 0 Regions Visited (2) 400 Robots Destroyed (20) 100 Value Destroyed (351) 351 Prototype IDs (2) 40 Alien Tech Used (0) 0 Bonus (0) 0 TOTAL SCORE: 891 Bonus ------- None Cogmind --------- Core Integrity 0/250 Matter 265/300 Energy 98/100 System Corruption 0% Temperature Cool (0) Movement Core (50) Location -10/Subcaves Parts ------- > --- POWER (1) -------- (None) > --- PROPULSION (2) --- (None) > --- UTILITY (2) ------ (None) > --- WEAPON (2) ------- (None) > --- INVENTORY (5) ---- Light Nuclear Core Light Treads Subdweller Beam Cannon Mining Claw Mining Claw Peak State ------------ > --- POWER ------------ Ion Engine > --- PROPULSION ------- Wheel Compact Wheel > --- UTILITY ---------- Small Storage Unit Improved Terrain Scanner > --- WEAPON ----------- Small Laser Light Assault Rifle > --- INVENTORY -------- Light Nuclear Core Light Treads Light Treads Wheel Compact Wheel Compact Wheel Small Laser Grenade Launcher [Rating: 10] Favorites ----------- Power Ion Engine Engine Ion Engine Propulsion Wheel Treads Light Treads Wheel Wheel Utility Small Storage Unit Device Improved Terrain Scanner Storage Small Storage Unit Weapon Small Laser Energy Gun Small Laser Ballistic Gun Assault Rifle Launcher Grenade Launcher Build | -11 -10 -10 ------- Run | Yrd Mat Sub Slots Evolved . | . . . Power . | . . . Propulsion . | . . . Utility . | . . . Weapon . | . . . Parts Attached 16 | 7 6 3 Power 1 | . 1 . Engine 1 | . 1 . Core . | . . . Reactor . | . . . Propulsion 7 | 2 3 2 Treads 2 | . . 2 Leg . | . . . Wheel 5 | 2 3 . Hover . | . . . Flight . | . . . Utility 2 | 2 . . Device 1 | 1 . . Storage 1 | 1 . . Processor . | . . . Hackware . | . . . Protection . | . . . Artifact . | . . . Weapon 6 | 3 2 1 Energy Gun 3 | 1 1 1 Energy Cannon . | . . . Ballistic Gun 2 | 2 . . Ballistic Cannon . | . . . Launcher 1 | . 1 . Special Weapon . | . . . Impact Weapon . | . . . Slashing Weapon . | . . . Piercing Weapon . | . . . Special Melee Weapon . | . . . Unidentified Prototypes . | . . . Parts Lost 8 | . 1 7 Power . | . . . Propulsion 2 | . . 2 Utility 1 | . . 1 Weapon 5 | . 1 4 Highest Loss Streak 5 | . 1 5 To Critical Strikes . | . . . Average Backups 6 | 3 6 6 Power . | . . 1 Propulsion 2 | 2 3 1 Utility . | . . . Weapon 2 | . 2 3 Tool/Special . | . . . Unused Backups 8 | . 3 5 Power 1 | . . 1 Propulsion 3 | . 2 1 Utility . | . . . Weapon 3 | . . 3 Tool/Special 1 | . 1 . Average Slot Usage (%) 92 | . 94 81 Engine 10 | . 9 13 Treads 2 | . . 16 Wheel 24 | . 27 9 Device 12 | . 14 4 Storage 13 | . 14 13 Energy Gun 20 | . 19 22 Ballistic Gun 6 | . 7 . Peak Build Rating 10 | 8 10 10 Average Rating 8 | 5 9 6 On Entrance 6 | . 8 10 Avg Prop Armor Cover (%) . | . . . Naked Turns . | . . . Heaviest Build 15 | 9 15 13 Greatest Support 40 | 26 26 40 Greatest Overweight (x) . | . . . Average Overweight (x) . | . . . Largest Inventory Capacity 8 | 8 8 8 Average Capacity 7 | 7 8 7 Most Carried 8 | 6 8 8 Average Carried 6 | 3 6 5 Final Capacity 8 | 8 8 5 Final Carried 8 | 5 8 5 Class Distribution -------------------- 50% | Mutant 49% | Scavenger-Mutant Dominant Class ---------------- Scavenger-Mutant | -10/Materials Mutant | -10/Subcaves Resources | -11 -10 -10 ----------- Run | Yrd Mat Sub Matter Collected 525 | 278 207 40 Remotely . | . . . Salvage Created 516 | 84 406 26 Parts 32 | 5 25 2 Haulers Intercepted . | . . . Recyclers Shooed . | . . . Parts Field Recycled . | . . . Retrieved Matter . | . . . Parts Self-Destructed . | . . . Prevented . | . . . Parts Restored . | . . . Kills | -11 -10 -10 ------- Run | Yrd Mat Sub Combat Hostiles Destroyed 12 | . 11 1 Guns 8 | . 7 1 AOE 4 | . 4 . Classes Destroyed 8 | 2 5 1 Worker 2 | . 2 . Builder 1 | . 1 . Tunneler 1 | 1 . . Recycler 2 | 1 1 . Watcher 2 | . 2 . Swarmer 6 | . 6 . Grunt 5 | . 5 . Subdweller 1 | . . 1 Best Kill Streak 4 | 2 4 1 Combat Bots Only 3 | . 3 1 Max Kills in Single Turn 4 | 1 4 1 Gunslinging . | . . . Exploded 2 | . 2 . Melee . | . . . Uniques/NPCs Destroyed . | . . . Combat | -11 -10 -10 -------- Run | Yrd Mat Sub Hostile Shots Fired 85 | . 49 36 Missed 31 | . 17 14 Hits 54 | . 32 22 Projectile 54 | . 32 22 AOE 8 | . . 8 Damage Taken 1169 | . 360 809 Core 297 | . 81 216 Absorbed by Shields . | . . . Regen/Repaired (Parts) 45 | . 45 . Core Remaining (%) 100 | 100 . . Volleys Fired 83 | 15 56 12 Largest 2 | 1 2 2 Hottest 80 | 40 80 80 Shots Fired 148 | 15 111 22 Gun 143 | 15 107 21 Cannon . | . . . Launcher 5 | . 4 1 Special . | . . . Kinetic 56 | . 56 . Thermal 80 | 15 51 14 Explosive 5 | . 4 1 Electromagnetic 7 | . . 7 Robot Hit Streak 10 | 7 10 10 Robot Miss Streak 3 | 3 3 2 Penetration Max . | . . . Secondary Targets . | . . . Shots Hit Robots 92 | 9 68 15 Core Hits 34 | 3 28 3 Critical Kills . | . . . Critical Parts Destroyed 1 | . 1 . Critical Strikes 1 | . 1 . Destroy 1 | . 1 . Melee Attacks . | . . . Impact . | . . . Slashing . | . . . Piercing . | . . . Sneak Attacks . | . . . Combat Hostiles . | . . . Follow-up Attacks . | . . . Damage Inflicted 1327 | 100 1013 214 Guns 983 | 100 725 158 Cannons . | . . . Explosions 344 | . 288 56 Melee . | . . . Ramming . | . . . Kinetic 438 | . 438 . Thermal 499 | 100 287 112 Explosive 344 | . 288 56 Electromagnetic 46 | . . 46 Impact . | . . . Slashing . | . . . Piercing . | . . . Highest Corruption . | . . . Average Corruption . | . . . Corruption Purged . | . . . Corruption Blocked . | . . . Overload Shots . | . . . Overflow Damage 21 | . 21 . Projectiles . | . . . Explosions 21 | . 21 . Melee . | . . . Knockbacks . | . . . Impact . | . . . Kinetic . | . . . Secondary . | . . . Self-Inflicted Damage . | . . . Shots . | . . . Rammed . | . . . Targets Rammed . | . . . Kicked . | . . . Crushed . | . . . Highest Temperature 79 | . 79 . Average Temperature 19 | . 19 . Received Heat Transfer 240 | . 186 54 Siege Activations . | . . . Martial Activations . | . . . Shielding Activations . | . . . Robots Disrupted . | . . . Combat Hostiles . | . . . Robots Corrupted . | . . . Combat Hostiles . | . . . Parts Fried . | . . . Impact Corruptions . | . . . Robots Melted . | . . . Combat Hostiles . | . . . Parts Melted . | . . . Heat Transferred 1150 | 225 675 250 Parts Sabotaged . | . . . Parts Stolen . | . . . Parts Stripped . | . . . Power Chain Reactions . | . . . Alert | -11 -10 -10 ------- Run | Yrd Mat Sub Maximum Alert Level . | . . . Low Security (%) 100 | 100 100 . Level 1 . | . . . Level 2 . | . . . Level 3 . | . . . Level 4 . | . . . Level 5 . | . . . High Security . | . . . Max Security . | . . . Peak Influence 144 | 10 144 . Initial . | . . . Average 47 | . 58 . Influence Increases 402 | 10 392 . Destroy 0b10 Robot/C 220 | . 220 . Destroy 0b10 Robot/NC 40 | 10 30 . Destroy Leader 44 | . 44 . Successful Hack 32 | . 32 . Disable Machine 15 | . 15 . Destroy Structure 51 | . 51 . Influence Decreases 402 | 10 332 60 Entered New Map 29 | . . 29 Time Decay 352 | 10 322 20 Lost Part 21 | . 10 11 Squads Dispatched 1 | . 1 . Investigation 1 | . 1 . Extermination . | . . . Reinforcement . | . . . Assault . | . . . Garrison . | . . . Intercept . | . . . Searches Triggered . | . . . Construction Impeded . | . . . Haulers Reinforced . | . . . Active Scanning Responses . | . . . Cargo Convoy Interrupts . | . . . Stealth | -11 -10 -10 --------- Run | Yrd Mat Sub Distress Signals 2 | . 2 . Communications Jammed . | . . . Distress Signals . | . . . Times Spotted 22 | . 18 4 Peak Tracking Total 4 | . 4 3 Tactical Retreats 1 | . . 1 Traps | -11 -10 -10 ------- Run | Yrd Mat Sub Traps Triggered . | . . . Indirectly . | . . . Trap Hack Attempts . | . . . Triggered . | . . . Disarmed . | . . . Reprogrammed . | . . . Reused . | . . . Traps Extracted . | . . . Installed . | . . . Triggered . | . . . Machines | -11 -10 -10 ---------- Run | Yrd Mat Sub Machines Disabled 1 | . 1 . Max in Single Turn 1 | . 1 . Machines Repaired . | . . . Machines Dismantled . | . . . Machines Sabotaged . | . . . Overloaded Fab Kills . | . . . Hacking | -11 -10 -10 --------- Run | Yrd Mat Sub Machines Accessed 6 | . 6 . Terminals 5 | . 5 . Fabricators . | . . . Repair Stations 1 | . 1 . Recycling Units . | . . . Scanalyzers . | . . . Garrison Access . | . . . Total Hacks 21 | . 21 . Successful 13 | . 13 . Failed 8 | . 8 . Catastrophic 1 | . 1 . Database Lockouts . | . . . Manual 29 | . 29 . Terminals 16 | . 16 . Fabricators . | . . . Repair Stations 5 | . 5 . Recycling Units . | . . . Scanalyzers . | . . . Garrison Access . | . . . Terminal Hacks 2 | . 2 . Prototype ID Bank 1 | . 1 . Terminal Index 1 | . 1 . Fabricator Hacks . | . . . Repair Station Hacks 5 | . 5 . Scan Component 3 | . 3 . Repair 2 | . 2 . Recycling Unit Hacks . | . . . Scanalyzer . | . . . Garrison Access Hacks . | . . . Unauthorized Hacks 6 | . 6 . Terminals 6 | . 6 . Track 1 | . 1 . Assimilate 1 | . 1 . Botnet 4 | . 4 . Fabricators . | . . . Repair Stations . | . . . Recycling Units . | . . . Scanalyzers . | . . . Garrison Access . | . . . Data Cores Recovered . | . . . Used . | . . . Hacking Detections 5 | . 5 . Full Trace Events 1 | . 1 . Feedback Events . | . . . Feedback Blocked . | . . . Robot Schematics Acquired . | . . . Robots Built . | . . . Authchips . | . . . Time . | . . . Total Robot Build Rating . | . . . Part Schematics Acquired . | . . . Parts Built . | . . . Authchips . | . . . Time . | . . . Total Part Build Rating . | . . . Part Studies Acquired . | . . . Parts Repaired 2 | . 2 . Time 52 | . 52 . Parts Recycled . | . . . Recycled Matter . | . . . Retrieved Matter . | . . . Retrieved Components . | . . . Parts Scanalyzed . | . . . Part Schematics Acquired . | . . . Parts Damaged . | . . . Bothacking | -11 -10 -10 ------------ Run | Yrd Mat Sub Used RIF Installer . | . . . Robots Hacked . | . . . Non-combat . | . . . Combat . | . . . Robot Hacks Applied . | . . . Relay Couplers Released . | . . . Fabnet Peak Effective % . | . . . Robots Rewired . | . . . Allies Hacked . | . . . Hacks Repelled . | . . . Allies | -11 -10 -10 -------- Run | Yrd Mat Sub Total Allies . | . . . Largest Group . | . . . Highest-Rated Group . | . . . Highest-Rated Ally . | . . . Total Orders . | . . . Ally Attacks . | . . . Total Damage . | . . . Kills . | . . . Allies Corrupted . | . . . Allies Melted . | . . . Intel | -11 -10 -10 ------- Run | Yrd Mat Sub Active Infowar (turns) 953 | 66 841 46 Terrain 953 | 66 841 46 Robot Analysis Total . | . . . Derelict Logs Recovered 1 | . . 1 Drone Launches . | . . . Drone Recoveries . | . . . Exploration | -11 -10 -10 ------------- Run | Yrd Mat Sub Turns Passed 1179 | 189 841 149 Spaces Moved 729 | 159 479 91 Core 21 | 19 . 2 Treads 43 | . . 43 Legs . | . . . Wheels 665 | 140 479 46 Hover . | . . . Flight . | . . . Fastest Speed 50 | 50 80 50 Average Speed 89 | 85 86 117 Slowest Speed 160 | 90 90 160 Overloaded Moves . | . . . Propulsion Burnouts . | . . . Robots Hopped . | . . . Potential Cave-ins . | . . . Cave-ins Triggered . | . . . Exploration Rate (%) 31 | 3 80 12 Regions Visited 2 Branch Regions 1 Pre-discovered Areas . | . . . Known Exits Taken . | . . . Unknown Exits Taken 2 | 1 1 . Scrap Searched . | . . . Spaces Dug . | . . . Terrain Destroyed 62 | . 56 6 Melee . | . . . Projectile . | . . . AOE 62 | . 56 6 Terrain Rammed . | . . . Walls Destroyed . | . . . Machines Disabled . | . . . Actions | -11 -10 -10 --------- Run | Yrd Mat Sub Total 1112 | 196 803 113 Wait 239 | 4 235 . Move 727 | 158 478 91 Hop . | . . . Pick Up 26 | 11 14 1 Fast Attach . | . . . Attach 17 | 6 7 4 Detach 1 | . 1 . Swap 8 | 2 5 1 Drop 11 | . 7 4 Fire 83 | 15 56 12 Melee . | . . . Ram . | . . . Kick . | . . . Crush . | . . . Escape Stasis . | . . . Rewire . | . . . Trap . | . . . Miscellaneous . | . . . Route ------- -11/Scrapyard -10/Materials (discovered 4 exits: [*Mat x2] / [*Min] / [*Sub]) -10/Subcaves (discovered 1 exit: [Scr]) History --------- Turn | Location | Event 8 | -11/Scrapyard | Discovered new exit (range 16) 190 | -11/Scrapyard | Entered Materials 305 | -10/Materials | Build established: Mutant 309 | -10/Materials | Discovered new exit (range 15) 479 | -10/Materials | Repaired Com. Wheel 507 | -10/Materials | Repaired Sml. Laser 611 | -10/Materials | Discovered new exit (range 16) 805 | -10/Materials | Build established: Scavenger-Mutant 832 | -10/Materials | Discovered new exit (range 13) 1024 | -10/Materials | Discovered new exit (range 9) 1031 | -10/Materials | Entered Subcaves 1032 | -10/Subcaves | Approached by a straggling Scientist 1044 | -10/Subcaves | Learned Materials terminal intel 1071 | -10/Subcaves | Ambushed by Subdweller buried in earth 1086 | -10/Subcaves | Core integrity fell below 50% 1109 | -10/Subcaves | Core integrity fell below 20% 1115 | -10/Subcaves | Lost 5 parts (2n1u2w) 1180 | -10/Subcaves | Destroyed by Q0-A00(R) with Subdweller Shrapnel Launcher Last Messages --------------- 01077_ Wheel destroyed. ER-N95(c): "We're getting close, I can feel it." 01083_ Wheel destroyed. 01084_ Sml. Laser destroyed. 01091_ OM-OXJ(R) destroyed. 01096_ Subatomizers dissect the Sub. Beam Cannon. 01097_ Acquired Sub. Beam Cannon. 01108_ Subatomizers dissect the Corrupted Sub. Monowheel. 01129_ B7-PIF(R) misfires. 01132_ Subatomizers dissect the Corrupted Sub. Monowheel, destroying it. 01137_ EM Pulse Gun destroyed. 01162_ Acquired 15 matter. 01166_ Acquired 13 matter. 01178_ Dropped Lgt. Treads. 01179_ Dropped Sml. Storage Unit. 01179_ Dropped Ion Engine. 01180_ Sml. Laser destroyed. Map ----- +----------------------------------------------------+ | ???????????????????????????????????????????? | | ???????????????????????????????????????????? | | ???????????????????????????????????????????? | | ???????????????????????????????????????????? | | ???????????????????????????????????????????? | | ???????????????????????????????????????????? | | ???????????????????????????????????????????? | | ???????????????????????????????????????????? | | ???????????????????????????????????????????? | | ???????????????????????????????????????????? | | ???????????????????????????????????????????? | | ???????????????????????????????????????????? | | ???????????????????????????????????????????? | | ???????????????????????????????????????????? | | ???????????????????????????????????????????? | | ???????????????????????????????????????????? | | ???????????????????????????????????????????? | | ??????????????????????????##???????????????? | | ?????????????????????????? #??? ??????????? | | ?????????????????????????? ##? #?????????? | | ???????????????????#####?# ## ??????????? | | ?????????????????### ## % ???????????? | | ????????????????## % ?????????????? | | ????????????????#; # ??????????????? | | ????????????????## #? ##??????????????? | | ????????????????#; @ ;### #??????????????? | | ????????????????#;; ;; #???????????????? | | ????????????????# ==* ###???????? ????? | | ????????????????#;;! ###???????????? | | ????????????????# %##??????????? | | ?????????#??????# #??????????? | | ???????????????## % #?#????????? | | ??????????????## ###???###??? | | ??????????????# % ## ## #?? | | ??????????????# %% % % % ?? | | ??????????????## ?? | | ???????????????# ##R ###### ?? | | ?????????#?????# ####R #???????????? | | ???????????????# ##??# ##?#????????? | | ??????????#????# #?#### ##?????????? | | ???????????#???## ??# ## % ##????????? | | ????????????????###??# #????????? | | ???????????????####### ## #????? | | ???????????????# #???? | | ??????????????## ??? | | ??????????????# ??? | | ??????????????# ############### ####???? | | ??????#???????#" " #??????????####??????? | | ?????????????##" "" #??#?????????????????? | | ???????????### " #????????#???????????? | +----------------------------------------------------+ Best States ------------- Heat Dissipation 25 Energy Generation 10 Energy Capacity 250 Matter Stores 300 Matter Capacity 300 Sight Range 16 Terrain Scan Range 16 Terrain Scan Density 10 Evasion (%) 50 Recoil Reduction 2 Item Schematics ----------------- None Robot Schematics ------------------ None Fabricated ------------ Nothing Repaired ---------- Com. Wheel | 56% | -10/Materials Sml. Laser | 54% | -10/Materials Studied --------- None Alien Tech Used ----------------- None Achievements -------------- Do Not Disturb Challenges ------------ None Game ------ Seed DecoderChargeDesublimator Manual? 0 Play Time 00:14:21 Cumulative 64.6 hours Start 2026.07.07 @ 21:53:31 End 2026.07.07 @ 22:06:36 Sessions 1 Manual Loads 0 Difficulty Rogue Special Mode None Game No. 70 Rogue 70 Adventurer 0 Explorer 0 Win Type - Total 2 Types 2/0/0/0/0/0/0/0/0/0 Lore% 47 Gallery% 32 Achievement% 23 Wizard Run 0 Options --------- Layout 1 ASCII 0 Keyboard 0 Movement Mouse Keybinds 0 Fullscreen 1 Font 24/Smallcaps Map View 50x35 Zoom Use 0% Tactical HUD 1 Map Filters NONE Filters NONE Steam 1 RUN: f551c0d5-74f9-436c-91c1-f58c7e251879